[Event "Titled Tuesday Blitz February 07 Early 2023"]
[White "Dinu, Dumitru-Daniel"]
[Black "Sukandar, Irine Kharisma"]
[WhiteFideId "1208403"]
[BlackFideId "7101937"]
[WhiteElo "2203"]
[BlackElo "2390"]
[Result "0-1"]
[Round "06"]
[TimeControl "180+2"]
[Date "2023.02.07"]
[WhiteClock "0:00:17"]
[BlackClock "0:01:26"]

1. e4 {[%clk 0:03:00]}  c5 {[%clk 0:02:59]} 2. b3 {[%clk 0:03:00]}  e5 {[%clk 0:02:58]} 3. Bb2 {[%clk 0:03:00]}  d6 {[%clk 0:02:58]} 4. f4 {[%clk 0:02:59]}  Nc6 {[%clk 0:02:43]} 5. Nf3 {[%clk 0:02:58]}  exf4 {[%clk 0:02:41]} 6. Bb5 {[%clk 0:02:57]}  Bd7 {[%clk 0:02:39]} 7. O-O {[%clk 0:02:56]}  Nf6 {[%clk 0:02:38]} 8. Bxc6 {[%clk 0:02:56]}  Bxc6 {[%clk 0:02:39]} 9. e5 {[%clk 0:02:56]}  dxe5 {[%clk 0:02:38]} 10. Nxe5 {[%clk 0:02:56]}  Bd5 {[%clk 0:02:28]} 11. Nd3 {[%clk 0:02:46]}  Be7 {[%clk 0:02:24]} 12. Nxf4 {[%clk 0:02:45]}  O-O {[%clk 0:02:20]} 13. Nxd5 {[%clk 0:02:45]}  Qxd5 {[%clk 0:02:19]} 14. Nc3 {[%clk 0:02:44]}  Qd4+ {[%clk 0:02:12]} 15. Kh1 {[%clk 0:02:43]}  Bd6 {[%clk 0:02:12]} 16. Rb1 {[%clk 0:02:19]}  Qh4 {[%clk 0:02:09]} 17. g3 {[%clk 0:02:17]}  Bxg3 {[%clk 0:02:08]} 18. Qe2 {[%clk 0:02:16]}  Ng4 {[%clk 0:02:00]} 19. Nd5 {[%clk 0:02:03]}  Rae8 {[%clk 0:01:39]} 20. Qg2 {[%clk 0:01:58]}  Nxh2 {[%clk 0:01:27]} 21. Rf5 {[%clk 0:00:17]}  Nf3+ {[%clk 0:01:26]} 0-1


[Site "https://www.chess.com"]

[Event "Titled Tuesday Blitz February 07 Early 2023"]
[White "Avalos Parra, Joao"]
[Black "Garayev, Kanan"]
[WhiteFideId "3402541"]
[BlackFideId "13406671"]
[WhiteElo "2185"]
[BlackElo "2346"]
[Result "1-0"]
[Round "06"]
[TimeControl "180+2"]
[Date "2023.02.07"]
[WhiteClock "0:00:34"]
[BlackClock "0:00:01"]

1. d4 {[%clk 0:03:00]}  d5 {[%clk 0:02:59]} 2. c4 {[%clk 0:03:01]}  e6 {[%clk 0:02:59]} 3. Nf3 {[%clk 0:03:01]}  a6 {[%clk 0:02:58]} 4. cxd5 {[%clk 0:02:59]}  exd5 {[%clk 0:02:58]} 5. Nc3 {[%clk 0:03:00]}  c6 {[%clk 0:02:57]} 6. Bf4 {[%clk 0:03:01]}  Bd6 {[%clk 0:02:54]} 7. e3 {[%clk 0:03:01]}  Ne7 {[%clk 0:02:54]} 8. Bd3 {[%clk 0:03:01]}  Bf5 {[%clk 0:02:53]} 9. O-O {[%clk 0:03:01]}  O-O {[%clk 0:02:51]} 10. h3 {[%clk 0:02:58]}  Bxd3 {[%clk 0:02:51]} 11. Qxd3 {[%clk 0:02:59]}  Ng6 {[%clk 0:02:51]} 12. Bxd6 {[%clk 0:02:57]}  Qxd6 {[%clk 0:02:52]} 13. a4 {[%clk 0:02:56]}  a5 {[%clk 0:02:50]} 14. Rfe1 {[%clk 0:02:54]}  Na6 {[%clk 0:02:47]} 15. h4 {[%clk 0:02:51]}  Nb4 {[%clk 0:02:46]} 16. Qf5 {[%clk 0:02:51]}  Ne7 {[%clk 0:02:39]} 17. Qb1 {[%clk 0:02:29]}  h6 {[%clk 0:02:33]} 18. e4 {[%clk 0:02:29]}  dxe4 {[%clk 0:02:30]} 19. Nxe4 {[%clk 0:02:30]}  Qc7 {[%clk 0:02:11]} 20. Ra3 {[%clk 0:02:21]}  Rad8 {[%clk 0:02:07]} 21. Qc1 {[%clk 0:02:06]}  Ned5 {[%clk 0:01:59]} 22. Ne5 {[%clk 0:02:04]}  Rfe8 {[%clk 0:01:55]} 23. Rg3 {[%clk 0:02:04]}  Re6 {[%clk 0:01:49]} 24. Nc5 {[%clk 0:01:58]}  Rf6 {[%clk 0:01:40]} 25. Ng4 {[%clk 0:01:58]}  Rg6 {[%clk 0:01:38]} 26. h5 {[%clk 0:01:54]}  Rg5 {[%clk 0:01:22]} 27. Ne4 {[%clk 0:01:35]}  Rxg4 {[%clk 0:01:15]} 28. Rxg4 {[%clk 0:01:34]}  f5 {[%clk 0:01:16]} 29. Rg6 {[%clk 0:01:16]}  Nd3 {[%clk 0:00:59]} 30. Qxh6 {[%clk 0:01:08]}  Nxe1 {[%clk 0:00:57]} 31. Ng5 {[%clk 0:01:03]}  Nf3+ {[%clk 0:00:25]} 32. gxf3 {[%clk 0:00:56]}  Rd7 {[%clk 0:00:12]} 33. Ne6 {[%clk 0:00:38]}  Kf7 {[%clk 0:00:01]} 34. Rxg7+ {[%clk 0:00:34]} 1-0


[Site "https://www.chess.com"]

[Event "Titled Tuesday Blitz February 07 Early 2023"]
[White "Mesa Cruz, Juan Carlos"]
[Black "Sanchez, Sebastian Felipe"]
[WhiteFideId "6423400"]
[BlackFideId "4403304"]
[WhiteElo "2122"]
[BlackElo "2427"]
[Result "0-1"]
[Round "06"]
[TimeControl "180+2"]
[Date "2023.02.07"]
[WhiteClock "0:00:12"]
[BlackClock "0:00:11"]

1. e4 {[%clk 0:03:00]}  e6 {[%clk 0:02:59]} 2. Qe2 {[%clk 0:02:56]}  c5 {[%clk 0:02:58]} 3. Nf3 {[%clk 0:02:55]}  Nc6 {[%clk 0:02:58]} 4. g3 {[%clk 0:02:55]}  g6 {[%clk 0:02:58]} 5. Bg2 {[%clk 0:02:56]}  Bg7 {[%clk 0:02:59]} 6. O-O {[%clk 0:02:56]}  Nge7 {[%clk 0:02:59]} 7. c3 {[%clk 0:02:56]}  e5 {[%clk 0:02:59]} 8. a3 {[%clk 0:02:55]}  O-O {[%clk 0:02:50]} 9. b4 {[%clk 0:02:56]}  d6 {[%clk 0:02:43]} 10. b5 {[%clk 0:02:54]}  Na5 {[%clk 0:02:36]} 11. a4 {[%clk 0:02:53]}  Nb3 {[%clk 0:02:34]} 12. Ra3 {[%clk 0:02:53]}  Nxc1 {[%clk 0:02:33]} 13. Rxc1 {[%clk 0:02:54]}  Be6 {[%clk 0:02:29]} 14. c4 {[%clk 0:02:52]}  h6 {[%clk 0:02:23]} 15. a5 {[%clk 0:02:52]}  Rb8 {[%clk 0:02:16]} 16. Nc3 {[%clk 0:02:50]}  f5 {[%clk 0:02:15]} 17. d3 {[%clk 0:02:50]}  f4 {[%clk 0:02:14]} 18. Nd5 {[%clk 0:02:39]}  g5 {[%clk 0:02:13]} 19. gxf4 {[%clk 0:02:09]}  Bxd5 {[%clk 0:01:59]} 20. exd5 {[%clk 0:02:04]}  Rxf4 {[%clk 0:01:58]} 21. Nd2 {[%clk 0:02:01]}  Nf5 {[%clk 0:01:58]} 22. Bh3 {[%clk 0:01:55]}  Nd4 {[%clk 0:01:55]} 23. Be6+ {[%clk 0:01:54]}  Kh7 {[%clk 0:01:46]} 24. Qe3 {[%clk 0:01:54]}  Qe7 {[%clk 0:01:41]} 25. Ne4 {[%clk 0:01:39]}  Rf3 {[%clk 0:01:37]} 26. Qd2 {[%clk 0:01:37]}  Rbf8 {[%clk 0:01:32]} 27. Rf1 {[%clk 0:01:33]}  R3f4 {[%clk 0:01:23]} 28. Kh1 {[%clk 0:01:27]}  h5 {[%clk 0:01:22]} 29. Raa1 {[%clk 0:01:23]}  Bh6 {[%clk 0:01:22]} 30. Rg1 {[%clk 0:01:23]}  Nf3 {[%clk 0:01:17]} 31. Qe3 {[%clk 0:01:21]}  Rh4 {[%clk 0:01:12]} 32. Rg2 {[%clk 0:01:20]}  g4 {[%clk 0:01:12]} 33. Qe2 {[%clk 0:01:16]}  Bf4 {[%clk 0:01:12]} 34. Ng3 {[%clk 0:01:14]}  Kh6 {[%clk 0:00:47]} 35. Nxh5 {[%clk 0:00:52]}  Bxh2 {[%clk 0:00:38]} 36. Rxg4 {[%clk 0:00:29]}  Rxh5 {[%clk 0:00:37]} 37. Kg2 {[%clk 0:00:27]}  Nd4 {[%clk 0:00:13]} 38. Qe4 {[%clk 0:00:26]}  Qf6 {[%clk 0:00:12]} 39. Rf1 {[%clk 0:00:22]}  Bf4 {[%clk 0:00:11]} 40. Rh1 {[%clk 0:00:20]}  Rxh1 {[%clk 0:00:11]} 41. Kxh1 {[%clk 0:00:21]}  Bg5 {[%clk 0:00:11]} 42. f4 {[%clk 0:00:16]}  exf4 {[%clk 0:00:10]} 43. Qg2 {[%clk 0:00:16]}  f3 {[%clk 0:00:10]} 44. Qh3+ {[%clk 0:00:16]}  Kg7 {[%clk 0:00:10]} 45. Qh5 {[%clk 0:00:14]}  Rh8 {[%clk 0:00:10]} 46. Rxg5+ {[%clk 0:00:14]}  Qxg5 {[%clk 0:00:11]} 47. Qxh8+ {[%clk 0:00:12]}  Kxh8 {[%clk 0:00:11]} 0-1


[Site "https://www.chess.com"]

[Event "Titled Tuesday Blitz February 07 Early 2023"]
[White "Karttunen, Mika"]
[Black "Melikhov, Evgeny V."]
[WhiteFideId "502081"]
[BlackFideId "4122046"]
[WhiteElo "2490"]
[BlackElo "2269"]
[Result "1-0"]
[Round "06"]
[TimeControl "180+2"]
[Date "2023.02.07"]
[WhiteClock "0:00:41"]
[BlackClock "0:00:01"]

1. e4 {[%clk 0:03:00]}  e5 {[%clk 0:02:58]} 2. Nf3 {[%clk 0:03:00]}  Nc6 {[%clk 0:02:58]} 3. Bb5 {[%clk 0:03:00]}  a6 {[%clk 0:02:49]} 4. Bxc6 {[%clk 0:02:58]}  dxc6 {[%clk 0:02:49]} 5. O-O {[%clk 0:02:57]}  f6 {[%clk 0:02:48]} 6. d4 {[%clk 0:02:55]}  exd4 {[%clk 0:02:48]} 7. Nxd4 {[%clk 0:02:53]}  c5 {[%clk 0:02:48]} 8. Ne2 {[%clk 0:02:52]}  Qxd1 {[%clk 0:02:48]} 9. Rxd1 {[%clk 0:02:52]}  Bd7 {[%clk 0:02:47]} 10. Nbc3 {[%clk 0:02:48]}  O-O-O {[%clk 0:02:46]} 11. Be3 {[%clk 0:02:46]}  b6 {[%clk 0:02:30]} 12. a4 {[%clk 0:02:45]}  a5 {[%clk 0:02:30]} 13. Nf4 {[%clk 0:02:41]}  Re8 {[%clk 0:02:19]} 14. Nfd5 {[%clk 0:02:36]}  Ne7 {[%clk 0:02:16]} 15. Bf4 {[%clk 0:02:04]}  Nxd5 {[%clk 0:02:09]} 16. Nxd5 {[%clk 0:02:03]}  Rxe4 {[%clk 0:02:07]} 17. Bxc7 {[%clk 0:02:02]}  Bxa4 {[%clk 0:00:52]} 18. Rxa4 {[%clk 0:01:43]}  Rxa4 {[%clk 0:00:51]} 19. Nxb6+ {[%clk 0:01:43]}  Kxc7 {[%clk 0:00:52]} 20. Nxa4 {[%clk 0:01:44]}  Be7 {[%clk 0:00:48]} 21. b3 {[%clk 0:01:42]}  Rd8 {[%clk 0:00:40]} 22. Rxd8 {[%clk 0:01:39]}  Kxd8 {[%clk 0:00:40]} 23. Kf1 {[%clk 0:01:39]}  Kd7 {[%clk 0:00:40]} 24. Ke2 {[%clk 0:01:39]}  Kc6 {[%clk 0:00:40]} 25. Kd3 {[%clk 0:01:39]}  Kd5 {[%clk 0:00:35]} 26. c4+ {[%clk 0:01:36]}  Kc6 {[%clk 0:00:32]} 27. Ke4 {[%clk 0:01:34]}  g6 {[%clk 0:00:31]} 28. g4 {[%clk 0:01:33]}  Bd6 {[%clk 0:00:28]} 29. h4 {[%clk 0:01:30]}  h5 {[%clk 0:00:22]} 30. gxh5 {[%clk 0:01:19]}  f5+ {[%clk 0:00:22]} 31. Kf3 {[%clk 0:01:16]}  gxh5 {[%clk 0:00:23]} 32. Nc3 {[%clk 0:01:15]}  Be7 {[%clk 0:00:20]} 33. Kg3 {[%clk 0:01:13]}  Bd6+ {[%clk 0:00:18]} 34. Kh3 {[%clk 0:01:11]}  Be5 {[%clk 0:00:15]} 35. Nd5 {[%clk 0:01:10]}  Kd6 {[%clk 0:00:12]} 36. f4 {[%clk 0:00:58]}  Bg7 {[%clk 0:00:11]} 37. Ne3 {[%clk 0:00:56]}  Ke6 {[%clk 0:00:10]} 38. Nf1 {[%clk 0:00:56]}  Bh6 {[%clk 0:00:07]} 39. Kg3 {[%clk 0:00:56]}  Bg7 {[%clk 0:00:07]} 40. Nh2 {[%clk 0:00:53]}  Bf6 {[%clk 0:00:07]} 41. Nf3 {[%clk 0:00:53]}  Bd8 {[%clk 0:00:07]} 42. Ne5 {[%clk 0:00:52]}  Bc7 {[%clk 0:00:07]} 43. Nd3 {[%clk 0:00:52]}  Bd6 {[%clk 0:00:07]} 44. Kf3 {[%clk 0:00:52]}  Kf6 {[%clk 0:00:06]} 45. Nf2 {[%clk 0:00:51]}  Ke6 {[%clk 0:00:06]} 46. Nh1 {[%clk 0:00:51]}  Be7 {[%clk 0:00:06]} 47. Ng3 {[%clk 0:00:50]}  Bxh4 {[%clk 0:00:05]} 48. Nxh5 {[%clk 0:00:50]}  Be7 {[%clk 0:00:05]} 49. Ng7+ {[%clk 0:00:44]}  Kf6 {[%clk 0:00:04]} 50. Ne8+ {[%clk 0:00:44]}  Ke6 {[%clk 0:00:04]} 51. Nc7+ {[%clk 0:00:44]}  Kd7 {[%clk 0:00:02]} 52. Nd5 {[%clk 0:00:45]}  Bd8 {[%clk 0:00:02]} 53. Kg3 {[%clk 0:00:44]}  Ke6 {[%clk 0:00:02]} 54. Nc3 {[%clk 0:00:42]}  Bc7 {[%clk 0:00:01]} 55. Na4 {[%clk 0:00:42]}  Bd6 {[%clk 0:00:01]} 56. Kf3 {[%clk 0:00:41]} 1-0


[Site "https://www.chess.com"]

[Event "Titled Tuesday Blitz February 07 Early 2023"]
[White "Kostiukov, Alexandr"]
[Black "Kopczynski, Michal"]
[WhiteFideId "14108100"]
[BlackFideId "1124200"]
[WhiteElo "2271"]
[BlackElo "2225"]
[Result "1-0"]
[Round "06"]
[TimeControl "180+2"]
[Date "2023.02.07"]
[WhiteClock "0:00:14"]
[BlackClock "0:00:34"]

1. g3 {[%clk 0:03:00]}  d6 {[%clk 0:02:59]} 2. Bg2 {[%clk 0:03:00]}  e5 {[%clk 0:03:00]} 3. c4 {[%clk 0:03:00]}  f5 {[%clk 0:03:00]} 4. Nc3 {[%clk 0:02:59]}  g6 {[%clk 0:03:01]} 5. Nf3 {[%clk 0:02:59]}  Bg7 {[%clk 0:03:01]} 6. O-O {[%clk 0:02:59]}  Nf6 {[%clk 0:03:00]} 7. d4 {[%clk 0:02:59]}  e4 {[%clk 0:03:00]} 8. Ng5 {[%clk 0:02:59]}  h6 {[%clk 0:03:00]} 9. Nh3 {[%clk 0:02:59]}  O-O {[%clk 0:03:00]} 10. f3 {[%clk 0:02:39]}  exf3 {[%clk 0:02:58]} 11. exf3 {[%clk 0:02:37]}  Nc6 {[%clk 0:02:56]} 12. Nf2 {[%clk 0:02:15]}  g5 {[%clk 0:02:54]} 13. f4 {[%clk 0:02:13]}  g4 {[%clk 0:02:49]} 14. a3 {[%clk 0:02:06]}  h5 {[%clk 0:02:50]} 15. d5 {[%clk 0:02:06]}  Ne7 {[%clk 0:02:49]} 16. Be3 {[%clk 0:02:02]}  h4 {[%clk 0:02:50]} 17. Bd4 {[%clk 0:02:00]}  hxg3 {[%clk 0:02:48]} 18. hxg3 {[%clk 0:02:00]}  c5 {[%clk 0:02:42]} 19. dxc6 {[%clk 0:01:54]}  Nxc6 {[%clk 0:02:43]} 20. Bxf6 {[%clk 0:01:49]}  Qxf6 {[%clk 0:02:39]} 21. Rb1 {[%clk 0:01:36]}  Be6 {[%clk 0:02:30]} 22. Nd5 {[%clk 0:01:34]}  Qd4 {[%clk 0:02:24]} 23. Nc7 {[%clk 0:01:29]}  Bxc4 {[%clk 0:02:19]} 24. Qxd4 {[%clk 0:01:14]}  Nxd4 {[%clk 0:02:18]} 25. Rfc1 {[%clk 0:00:23]}  Ne2+ {[%clk 0:02:15]} 26. Kh2 {[%clk 0:00:23]}  Nxc1 {[%clk 0:02:06]} 27. Nxa8 {[%clk 0:00:20]}  Ne2 {[%clk 0:01:59]} 28. Nc7 {[%clk 0:00:18]}  Kf7 {[%clk 0:01:59]} 29. Bd5+ {[%clk 0:00:17]}  Bxd5 {[%clk 0:01:59]} 30. Nxd5 {[%clk 0:00:18]}  Rh8+ {[%clk 0:01:59]} 31. Kg2 {[%clk 0:00:18]}  Bd4 {[%clk 0:01:58]} 32. Nd3 {[%clk 0:00:16]}  Rh3 {[%clk 0:01:56]} 33. Re1 {[%clk 0:00:13]}  Rxg3+ {[%clk 0:01:48]} 34. Kh2 {[%clk 0:00:14]}  Bg1+ {[%clk 0:01:22]} 35. Kh1 {[%clk 0:00:13]}  Rh3+ {[%clk 0:01:21]} 36. Kg2 {[%clk 0:00:13]}  Rh2+ {[%clk 0:01:21]} 37. Kf1 {[%clk 0:00:13]}  Nd4 {[%clk 0:01:03]} 38. Re7+ {[%clk 0:00:12]}  Kf8 {[%clk 0:01:02]} 39. Kxg1 {[%clk 0:00:13]}  Nf3+ {[%clk 0:01:00]} 40. Kf1 {[%clk 0:00:12]}  g3 {[%clk 0:00:58]} 41. Ne3 {[%clk 0:00:11]}  Kxe7 {[%clk 0:00:54]} 42. Nxf5+ {[%clk 0:00:11]}  Kf6 {[%clk 0:00:54]} 43. Nxg3 {[%clk 0:00:12]}  Rc2 {[%clk 0:00:42]} 44. Ne4+ {[%clk 0:00:12]}  Kf5 {[%clk 0:00:42]} 45. Nxd6+ {[%clk 0:00:12]}  Kg4 {[%clk 0:00:41]} 46. Nxb7 {[%clk 0:00:12]}  Kg3 {[%clk 0:00:39]} 47. f5 {[%clk 0:00:10]}  Rd2 {[%clk 0:00:38]} 48. Nbc5 {[%clk 0:00:09]}  Rc2 {[%clk 0:00:33]} 49. f6 {[%clk 0:00:09]}  Ng5 {[%clk 0:00:32]} 50. Ke1 {[%clk 0:00:09]}  Kg4 {[%clk 0:00:29]} 51. Kd1 {[%clk 0:00:09]}  Rh2 {[%clk 0:00:29]} 52. Ne5+ {[%clk 0:00:07]}  Kf5 {[%clk 0:00:29]} 53. f7 {[%clk 0:00:07]}  Rh8 {[%clk 0:00:21]} 54. Ncd7 {[%clk 0:00:07]}  Nxf7 {[%clk 0:00:17]} 55. Nxf7 {[%clk 0:00:06]}  Rh7 {[%clk 0:00:17]} 56. Nfe5 {[%clk 0:00:07]}  Rh2 {[%clk 0:00:16]} 57. Kc1 {[%clk 0:00:06]}  Ke4 {[%clk 0:00:16]} 58. Kb1 {[%clk 0:00:07]}  Kd4 {[%clk 0:00:16]} 59. Ka2 {[%clk 0:00:07]}  a5 {[%clk 0:00:16]} 60. Nf3+ {[%clk 0:00:07]}  Kd5 {[%clk 0:00:15]} 61. Nxh2 {[%clk 0:00:07]}  Kd6 {[%clk 0:00:16]} 62. Nf6 {[%clk 0:00:07]}  Kc5 {[%clk 0:00:16]} 63. Ne4+ {[%clk 0:00:07]}  Kd4 {[%clk 0:00:17]} 64. Nd2 {[%clk 0:00:08]}  Kd3 {[%clk 0:00:17]} 65. Nb3 {[%clk 0:00:07]}  a4 {[%clk 0:00:17]} 66. Nc5+ {[%clk 0:00:08]}  Kc4 {[%clk 0:00:18]} 67. Nxa4 {[%clk 0:00:09]}  Kb5 {[%clk 0:00:19]} 68. Nc3+ {[%clk 0:00:09]}  Kc4 {[%clk 0:00:20]} 69. Nf3 {[%clk 0:00:07]}  Kc5 {[%clk 0:00:20]} 70. Nd2 {[%clk 0:00:08]}  Kc6 {[%clk 0:00:21]} 71. Kb3 {[%clk 0:00:08]}  Kb6 {[%clk 0:00:22]} 72. Kb4 {[%clk 0:00:09]}  Ka6 {[%clk 0:00:23]} 73. a4 {[%clk 0:00:09]}  Kb6 {[%clk 0:00:24]} 74. a5+ {[%clk 0:00:10]}  Kc6 {[%clk 0:00:25]} 75. Ka4 {[%clk 0:00:11]}  Kb7 {[%clk 0:00:25]} 76. b4 {[%clk 0:00:12]}  Ka7 {[%clk 0:00:26]} 77. b5 {[%clk 0:00:12]}  Kb7 {[%clk 0:00:26]} 78. Kb4 {[%clk 0:00:13]}  Ka7 {[%clk 0:00:27]} 79. Kc5 {[%clk 0:00:14]}  Kb8 {[%clk 0:00:28]} 80. Kb6 {[%clk 0:00:14]}  Ka8 {[%clk 0:00:29]} 81. Nd5 {[%clk 0:00:14]}  Kb8 {[%clk 0:00:30]} 82. Ne4 {[%clk 0:00:15]}  Kc8 {[%clk 0:00:31]} 83. Nc5 {[%clk 0:00:15]}  Kb8 {[%clk 0:00:31]} 84. Ne6 {[%clk 0:00:14]}  Ka8 {[%clk 0:00:32]} 85. a6 {[%clk 0:00:13]}  Kb8 {[%clk 0:00:33]} 86. a7+ {[%clk 0:00:13]}  Ka8 {[%clk 0:00:34]} 87. Nec7# {[%clk 0:00:14]} 1-0


[Site "https://www.chess.com"]

[Event "Titled Tuesday Blitz February 07 Early 2023"]
[White "Sputnik-11"]
[Black "Sharapov, Evgeny"]
[BlackFideId "14103133"]
[WhiteElo "2381"]
[BlackElo "2375"]
[Result "0-1"]
[Round "06"]
[TimeControl "180+2"]
[Date "2023.02.07"]
[WhiteClock "0:00:05"]
[BlackClock "0:00:12"]

1. Nf3 {[%clk 0:03:00]}  c5 {[%clk 0:02:59]} 2. c4 {[%clk 0:03:00]}  Nc6 {[%clk 0:02:59]} 3. Nc3 {[%clk 0:02:59]}  e5 {[%clk 0:02:58]} 4. g3 {[%clk 0:02:59]}  g6 {[%clk 0:02:58]} 5. Bg2 {[%clk 0:02:59]}  Bg7 {[%clk 0:02:59]} 6. O-O {[%clk 0:03:00]}  d6 {[%clk 0:02:59]} 7. a3 {[%clk 0:02:58]}  a5 {[%clk 0:02:58]} 8. Ne1 {[%clk 0:02:55]}  Be6 {[%clk 0:02:57]} 9. d3 {[%clk 0:02:56]}  Nge7 {[%clk 0:02:57]} 10. Nc2 {[%clk 0:02:51]}  d5 {[%clk 0:02:57]} 11. cxd5 {[%clk 0:02:45]}  Nxd5 {[%clk 0:02:57]} 12. Ne3 {[%clk 0:02:44]}  Nde7 {[%clk 0:02:56]} 13. Nc4 {[%clk 0:02:18]}  O-O {[%clk 0:02:52]} 14. Be3 {[%clk 0:02:11]}  b6 {[%clk 0:02:45]} 15. Nb5 {[%clk 0:02:02]}  Rb8 {[%clk 0:02:36]} 16. Rb1 {[%clk 0:01:49]}  Nd4 {[%clk 0:02:35]} 17. Bxd4 {[%clk 0:01:45]}  exd4 {[%clk 0:02:34]} 18. b4 {[%clk 0:01:31]}  axb4 {[%clk 0:02:33]} 19. axb4 {[%clk 0:01:32]}  cxb4 {[%clk 0:02:33]} 20. Rxb4 {[%clk 0:01:26]}  Nd5 {[%clk 0:02:32]} 21. Rb1 {[%clk 0:01:18]}  Nc3 {[%clk 0:02:27]} 22. Nxc3 {[%clk 0:01:11]}  dxc3 {[%clk 0:02:26]} 23. Na3 {[%clk 0:00:54]}  Qe7 {[%clk 0:02:16]} 24. Nb5 {[%clk 0:00:52]}  Rfc8 {[%clk 0:02:07]} 25. Qc2 {[%clk 0:00:47]}  Bd7 {[%clk 0:01:39]} 26. Rfc1 {[%clk 0:00:41]}  Rc5 {[%clk 0:01:32]} 27. Na3 {[%clk 0:00:12]}  b5 {[%clk 0:01:29]} 28. Qb3 {[%clk 0:00:07]}  b4 {[%clk 0:01:21]} 29. Nc4 {[%clk 0:00:03]}  Be6 {[%clk 0:01:13]} 30. Qa4 {[%clk 0:00:03]}  Bxc4 {[%clk 0:00:59]} 31. dxc4 {[%clk 0:00:02]}  Rxc4 {[%clk 0:00:58]} 32. Rc2 {[%clk 0:00:01]}  Qc5 {[%clk 0:00:41]} 33. Qb3 {[%clk 0:00:02]}  h5 {[%clk 0:00:21]} 34. e3 {[%clk 0:00:03]}  Qc7 {[%clk 0:00:18]} 35. Rd1 {[%clk 0:00:03]}  Rc5 {[%clk 0:00:16]} 36. Bd5 {[%clk 0:00:03]}  Ra5 {[%clk 0:00:15]} 37. Bc4 {[%clk 0:00:03]}  Ra3 {[%clk 0:00:14]} 38. Bxf7+ {[%clk 0:00:04]}  Qxf7 {[%clk 0:00:12]} 39. Qxf7+ {[%clk 0:00:04]}  Kxf7 {[%clk 0:00:12]} 40. Rd7+ {[%clk 0:00:05]}  Kg8 {[%clk 0:00:12]} 0-1


[Site "https://www.chess.com"]

[Event "Titled Tuesday Blitz February 07 Early 2023"]
[White "Cella, Glaucio Dalla Cortt"]
[Black "Mogirzan, Matei-Valeriu"]
[WhiteFideId "2119455"]
[BlackFideId "1257455"]
[WhiteElo "1894"]
[BlackElo "1813"]
[Result "1/2-1/2"]
[Round "06"]
[TimeControl "180+2"]
[Date "2023.02.07"]
[WhiteClock "0:00:26"]
[BlackClock "0:00:03"]

1. e4 {[%clk 0:02:44]}  d6 {[%clk 0:02:54]} 2. Nf3 {[%clk 0:02:44]}  Nd7 {[%clk 0:02:44]} 3. d4 {[%clk 0:02:43]}  a6 {[%clk 0:02:44]} 4. Bc4 {[%clk 0:02:36]}  e6 {[%clk 0:02:41]} 5. a4 {[%clk 0:02:33]}  b6 {[%clk 0:02:40]} 6. O-O {[%clk 0:02:31]}  Bb7 {[%clk 0:02:40]} 7. Nc3 {[%clk 0:02:31]}  h6 {[%clk 0:02:39]} 8. d5 {[%clk 0:02:25]}  e5 {[%clk 0:02:39]} 9. b3 {[%clk 0:02:23]}  g6 {[%clk 0:02:36]} 10. Nd2 {[%clk 0:02:23]}  Bg7 {[%clk 0:02:34]} 11. Bb2 {[%clk 0:02:20]}  Ne7 {[%clk 0:02:30]} 12. f4 {[%clk 0:02:12]}  exf4 {[%clk 0:02:24]} 13. Rxf4 {[%clk 0:02:12]}  Ne5 {[%clk 0:02:22]} 14. Qf1 {[%clk 0:02:08]}  O-O {[%clk 0:01:44]} 15. Ne2 {[%clk 0:02:00]}  g5 {[%clk 0:01:24]} 16. Rf2 {[%clk 0:01:54]}  N7g6 {[%clk 0:01:11]} 17. Ng3 {[%clk 0:01:48]}  Bc8 {[%clk 0:00:39]} 18. Nf5 {[%clk 0:01:42]}  Bxf5 {[%clk 0:00:36]} 19. exf5 {[%clk 0:01:43]}  Nf4 {[%clk 0:00:18]} 20. Bxa6 {[%clk 0:01:26]}  Ng4 {[%clk 0:00:09]} 21. Bxg7 {[%clk 0:01:27]}  Kxg7 {[%clk 0:00:10]} 22. Rxf4 {[%clk 0:01:18]}  gxf4 {[%clk 0:00:11]} 23. Qxf4 {[%clk 0:01:18]}  Qg5 {[%clk 0:00:05]} 24. Qd4+ {[%clk 0:01:19]}  Ne5 {[%clk 0:00:03]} 25. Bb5 {[%clk 0:01:08]}  Rg8 {[%clk 0:00:02]} 26. Ne4 {[%clk 0:00:59]}  Qg4 {[%clk 0:00:02]} 27. Rf1 {[%clk 0:01:00]}  Kf8 {[%clk 0:00:01]} 28. g3 {[%clk 0:00:54]}  Nf3+ {[%clk 0:00:02]} 29. Rxf3 {[%clk 0:00:48]}  Qxf3 {[%clk 0:00:03]} 30. Nf6 {[%clk 0:00:48]}  Rg5 {[%clk 0:00:01]} 31. Nh7+ {[%clk 0:00:43]}  Kg8 {[%clk 0:00:02]} 32. Nf6+ {[%clk 0:00:43]}  Kf8 {[%clk 0:00:02]} 33. Nd7+ {[%clk 0:00:37]}  Kg8 {[%clk 0:00:03]} 34. Nf6+ {[%clk 0:00:26]}  Kf8 {[%clk 0:00:03]} 1/2-1/2


[Site "https://www.chess.com"]